fUST/lending_fUST_20250720
["ID","MTS","AMOUNT","RATE_DAILY","PERIOD"]
[373503387,1753024246357,-460.0,0.0001726,2]
[373503389,1753024246367,-460.0,0.0001726,2]
[373503391,1753024246377,-460.0,0.0001726,2]
[373503393,1753024246386,-460.0,0.0001726,2]
[373503395,1753024246396,-460.0,0.0001726,2]
[373503397,1753024246405,-460.0,0.0001726,2]
[373503398,1753024246415,-460.0,0.0001726,2]
[373503400,1753024246424,-4843.49,0.0001726,2]
[373503402,1753024246433,-460.0,0.0001726,2]
[373503404,1753024246442,-460.0,0.0001726,2]
[373503406,1753024246452,-460.0,0.0001726,2]
[373503407,1753024246461,-460.0,0.0001726,2]
[373503409,1753024246470,-460.0,0.0001726,2]
[373503411,1753024246479,-460.0,0.0001726,2]
[373503413,1753024246488,-1237.85,0.0001726,2]
[373503414,1753024246498,-483.48,0.0001726,2]
[373503416,1753024246507,-460.0,0.0001726,2]
[373503418,1753024246517,-3981.81,0.0001726,2]
[373503420,1753024246526,-460.0,0.0001726,2]
[373503421,1753024246535,-460.0,0.0001726,2]
[373503423,1753024246544,-475.84164453,0.0001726,2]
[373503425,1753024246554,-460.0,0.0001726,2]
[373503427,1753024246563,-460.0,0.0001726,2]
[373503428,1753024246572,-460.0,0.0001726,2]
[373503430,1753024246581,-460.0,0.0001726,2]
[373503432,1753024246590,-460.0,0.0001726,2]
[373503434,1753024246600,-460.0,0.0001726,2]
[373503435,1753024246609,-460.0,0.0001726,2]
[373503437,1753024246618,-460.0,0.0001726,2]
[373503439,1753024246627,-1155.02,0.0001726,2]
[373503441,1753024246636,-460.0,0.0001726,2]
[373503443,1753024246646,-460.0,0.0001726,2]
[373503444,1753024246655,-460.0,0.0001726,2]
[373503446,1753024246671,-460.0,0.0001726,2]
[373503448,1753024246680,-460.0,0.0001726,2]
[373503450,1753024246690,-1417.78,0.0001726,2]
[373503452,1753024246699,-460.0,0.0001726,2]
[373503453,1753024246709,-460.0,0.0001726,2]
[373503455,1753024246719,-460.0,0.0001726,2]
[373503457,1753024246728,-569.14,0.0001726,2]
[373503459,1753024246738,-1607.28,0.0001726,2]
[373503461,1753024246748,-433.31,0.0001726,2]
[373503462,1753024246759,-460.0,0.0001726,2]
[373503464,1753024246769,-460.0,0.0001726,2]
[373503466,1753024246778,-460.0,0.0001726,2]
[373503478,1753024246907,-460.0,0.0001726,2]
[373503480,1753024246917,-460.0,0.0001726,2]
[373503482,1753024246927,-460.0,0.0001726,2]
[373503484,1753024246937,-460.0,0.0001726,2]
[373503486,1753024246946,-368.04413581,0.0001726,2]
[373503488,1753024246956,-460.0,0.0001726,2]
[373503489,1753024246965,-460.0,0.0001726,2]
[373503491,1753024246975,-526.57,0.0001726,2]
[373503493,1753024246984,-460.0,0.0001726,2]
[373503495,1753024246994,-460.0,0.0001726,2]
[373503496,1753024247003,-460.0,0.0001726,2]
[373503498,1753024247013,-460.0,0.0001726,2]
[373503500,1753024247022,-2632.32,0.0001726,2]
[373503502,1753024247032,-460.0,0.0001726,2]
[373503503,1753024247041,-460.0,0.0001726,2]
[373503505,1753024247051,-1706.81,0.0001726,2]
[373503507,1753024247060,-460.0,0.0001726,2]
[373503509,1753024247069,-460.0,0.0001726,2]
[373503510,1753024247078,-610.02,0.0001726,2]
[373503512,1753024247088,-460.0,0.0001726,2]
[373503514,1753024247097,-1837.71,0.0001726,2]
[373503516,1753024247107,-460.0,0.0001726,2]
[373503517,1753024247117,-460.0,0.0001726,2]
[373503519,1753024247127,-460.0,0.0001726,2]
[373503521,1753024247137,-460.0,0.0001726,2]
[373503523,1753024247147,-460.0,0.0001726,2]
[373503525,1753024247156,-460.0,0.0001726,2]
[373503526,1753024247166,-460.0,0.0001726,2]
[373503528,1753024247176,-460.0,0.0001726,2]
[373503530,1753024247185,-460.0,0.0001726,2]
[373503532,1753024247195,-460.0,0.0001726,2]
[373503534,1753024247204,-505.86,0.0001726,2]
[373503536,1753024247213,-516.74,0.0001726,2]
[373503537,1753024247223,-460.0,0.0001726,2]
[373503539,1753024247233,-800.41,0.0001726,2]
[373503541,1753024247243,-911.32,0.0001726,2]
[373503543,1753024247252,-460.0,0.0001726,2]
[373503544,1753024247261,-660.01,0.0001726,2]
[373503546,1753024247270,-460.0,0.0001726,2]
[373503548,1753024247279,-460.0,0.0001726,2]
[373503550,1753024247288,-460.0,0.0001726,2]
[373503551,1753024247297,-460.0,0.0001726,2]
[373503553,1753024247307,-460.0,0.0001726,2]
[373503555,1753024247316,-460.0,0.0001726,2]
[373503557,1753024247326,-460.0,0.0001726,2]
[373503559,1753024247335,-460.0,0.0001726,2]
[373503561,1753024247344,-460.0,0.0001726,2]
[373503562,1753024247353,-460.0,0.0001726,2]
[373503564,1753024247362,-460.0,0.0001726,2]
[373503566,1753024247372,-460.0,0.0001726,2]
[373503568,1753024247381,-460.0,0.0001726,2]
[373503570,1753024247391,-460.0,0.0001726,2]
[373503572,1753024247400,-1083.37,0.0001726,2]
[373503573,1753024247409,-460.0,0.0001726,2]
[373503575,1753024247418,-460.0,0.0001726,2]
[373503577,1753024247427,-1652.76,0.0001726,2]
[373503579,1753024247437,-460.0,0.0001726,2]
[373503581,1753024247447,-610.94,0.0001726,2]
[373503583,1753024247456,-460.0,0.0001726,2]
[373503584,1753024247465,-460.0,0.0001726,2]
[373503586,1753024247474,-460.0,0.0001726,2]
[373503588,1753024247484,-460.0,0.0001726,2]
[373503590,1753024247493,-500.74,0.0001726,2]
[373503591,1753024247502,-460.0,0.0001726,2]
[373503593,1753024247512,-575.9,0.0001726,2]
[373503595,1753024247521,-460.0,0.0001726,2]
[373503597,1753024247529,-460.0,0.0001726,2]
[373503598,1753024247538,-887.74,0.0001726,2]
[373503600,1753024247547,-460.0,0.0001726,2]
[373503602,1753024247557,-460.0,0.0001726,2]
[373503604,1753024247566,-460.0,0.0001726,2]
[373503606,1753024247575,-460.0,0.0001726,2]
[373503607,1753024247585,-460.0,0.0001726,2]
[373503609,1753024247594,-460.0,0.0001726,2]
[373503611,1753024247604,-1920.16,0.0001726,2]
[373503613,1753024247613,-460.0,0.0001726,2]
[373503615,1753024247622,-460.0,0.0001726,2]
[373503616,1753024247631,-460.0,0.0001726,2]
[373503618,1753024247641,-727.42,0.0001726,2]
[373503620,1753024247650,-1924.42,0.0001726,2]
[373503622,1753024247661,-500.38190345,0.00017273,2]
[373503624,1753024247674,-502.51153415,0.00017273,2]
[373503626,1753024247683,-1000.0,0.00017321,2]
[373503627,1753024247692,-867.91445267,0.00017321,2]
[373503629,1753024247703,-500.67785055,0.00017321,2]
[373503631,1753024247712,-425.69746946,0.00017321,2]
[373503633,1753024247721,-1000.0,0.00017321,2]
[373503635,1753024247731,-1000.0,0.00017321,2]
[373503637,1753024247742,-1000.0,0.00017321,2]
[373503638,1753024247751,-1000.0,0.00017321,2]
[373503640,1753024247760,-1000.0,0.00017321,2]
[373503642,1753024247770,-1000.0,0.00017321,2]
[373503644,1753024247779,-998.33811525,0.00017321,2]
[373503646,1753024247788,-419.00766966,0.00017321,2]
[373503648,1753024247797,-237.0,0.00017348,2]
[373503650,1753024247807,-237.0,0.00017389,2]
[373503651,1753024247816,-151.0,0.000174,2]
[373503653,1753024247827,-1695.84133023,0.00017434,2]
[373503655,1753024247836,-4899.29356198,0.00017452,2]
[373503657,1753024247845,-291.42,0.00017459,2]
[373503659,1753024247854,-1519.91708283,0.00017468,2]
[373503661,1753024247864,-237.0,0.00017485,2]
[373503662,1753024247874,-174.0,0.00017499,2]
[373503664,1753024247883,-151.0,0.000175,2]
[373503666,1753024247893,-460.0,0.00017534,2]
[373503668,1753024247902,-344.03695409,0.00017534,2]
[373503670,1753024247912,-521.02842211,0.00017534,2]
[373503672,1753024247921,-460.0,0.00017534,2]
[373503674,1753024247930,-460.0,0.00017534,2]
[373503675,1753024247940,-460.0,0.00017534,2]
[373503677,1753024247949,-460.0,0.00017534,2]
[373503679,1753024247958,-460.0,0.00017534,2]
[373503681,1753024247967,-460.0,0.00017534,2]
[373503683,1753024247977,-502.79,0.00017534,2]
[373503685,1753024247986,-259.33486079,0.00017534,2]
[373503687,1753024247996,-460.0,0.00017534,2]
[373503688,1753024248005,-1204.91,0.00017534,2]
[373503690,1753024248014,-460.0,0.00017534,2]
[373503692,1753024248023,-187.43948089,0.00017534,2]
[373503694,1753024248033,-396.23073792,0.00017534,2]
[373503696,1753024248042,-460.0,0.00017534,2]
[373503697,1753024248051,-491.79,0.00017534,2]
[373503699,1753024248060,-460.0,0.00017534,2]
[373503701,1753024248070,-2144.03,0.00017534,2]
[373503703,1753024248079,-460.0,0.00017534,2]
[373503705,1753024248088,-460.0,0.00017534,2]
[373503707,1753024248097,-460.0,0.00017534,2]
[373503709,1753024248105,-460.0,0.00017534,2]
[373503710,1753024248114,-460.0,0.00017534,2]
[373503712,1753024248123,-460.0,0.00017534,2]
[373503714,1753024248131,-460.0,0.00017534,2]
[373503716,1753024248141,-461.33243978,0.00017534,2]
[373503718,1753024248150,-460.0,0.00017534,2]
[373503720,1753024248159,-460.0,0.00017534,2]
[373503722,1753024248168,-4843.49,0.00017534,2]
[373503723,1753024248177,-460.0,0.00017534,2]
[373503725,1753024248186,-518.16736314,0.00017534,2]
[373503727,1753024248195,-460.0,0.00017534,2]
[373503729,1753024248205,-503.23909564,0.00017534,2]
[373503731,1753024248214,-460.0,0.00017534,2]
[373503733,1753024248223,-1237.85,0.00017534,2]
[373503734,1753024248233,-483.48,0.00017534,2]
[373503736,1753024248243,-460.0,0.00017534,2]
[373503738,1753024248253,-3981.81,0.00017534,2]
[373503740,1753024248262,-460.0,0.00017534,2]
[373503742,1753024248272,-460.0,0.00017534,2]
[373503744,1753024248281,-460.0,0.00017534,2]
[373503746,1753024248291,-460.0,0.00017534,2]
[373503748,1753024248300,-460.0,0.00017534,2]
[373503749,1753024248309,-460.0,0.00017534,2]
[373503751,1753024248318,-460.0,0.00017534,2]
[373503753,1753024248327,-460.0,0.00017534,2]
[373503755,1753024248336,-460.0,0.00017534,2]
[373503757,1753024248345,-1155.02,0.00017534,2]
[373503758,1753024248354,-460.0,0.00017534,2]
[373503760,1753024248364,-460.0,0.00017534,2]
[373503762,1753024248374,-460.0,0.00017534,2]
[373503764,1753024248383,-460.0,0.00017534,2]
[373503766,1753024248393,-1417.78,0.00017534,2]
[373503767,1753024248402,-460.0,0.00017534,2]
[373503769,1753024248412,-468.11247826,0.00017534,2]
[373503771,1753024248422,-460.0,0.00017534,2]
[373503773,1753024248432,-569.14,0.00017534,2]
[373503775,1753024248442,-1607.28,0.00017534,2]
[373503776,1753024248452,-460.0,0.00017534,2]
[373503778,1753024248462,-460.0,0.00017534,2]
[373503780,1753024248474,-460.0,0.00017534,2]
[373503782,1753024248484,-460.0,0.00017534,2]
[373503784,1753024248494,-460.0,0.00017534,2]
[373503786,1753024248504,-460.0,0.00017534,2]
[373503788,1753024248514,-460.0,0.00017534,2]
[373503789,1753024248523,-460.0,0.00017534,2]
[373503791,1753024248532,-526.57,0.00017534,2]
[373503793,1753024248541,-460.0,0.00017534,2]
[373503795,1753024248550,-460.0,0.00017534,2]
[373503797,1753024248558,-460.0,0.00017534,2]
[373503798,1753024248567,-460.0,0.00017534,2]
[373503800,1753024248577,-2632.32,0.00017534,2]
[373503802,1753024248586,-460.0,0.00017534,2]
[373503804,1753024248595,-460.0,0.00017534,2]
[373503806,1753024248604,-1706.81,0.00017534,2]
[373503807,1753024248613,-303.43,0.00017534,2]
[373503809,1753024248623,-460.0,0.00017534,2]
[373503811,1753024248633,-610.02,0.00017534,2]
[373503813,1753024248643,-537.00062229,0.00017534,2]
[373503815,1753024248652,-1837.71,0.00017534,2]
[373503817,1753024248662,-460.0,0.00017534,2]
[373503819,1753024248674,-460.0,0.00017534,2]
[373503820,1753024248684,-460.0,0.00017534,2]
[373503822,1753024248693,-460.0,0.00017534,2]
[373503824,1753024248702,-460.0,0.00017534,2]
[373503826,1753024248711,-460.0,0.00017534,2]
[373503828,1753024248720,-460.0,0.00017534,2]
[373503829,1753024248730,-460.0,0.00017534,2]
[373503831,1753024248739,-460.0,0.00017534,2]
[373503833,1753024248749,-460.0,0.00017534,2]
[373503835,1753024248759,-505.86,0.00017534,2]
[373503837,1753024248768,-516.74,0.00017534,2]
[373503839,1753024248778,-460.0,0.00017534,2]
[373503840,1753024248787,-800.41,0.00017534,2]
[373503842,1753024248796,-911.32,0.00017534,2]
[373503843,1753024248805,-460.0,0.00017534,2]
[373503844,1753024248815,-660.01,0.00017534,2]
[373503845,1753024248824,-460.0,0.00017534,2]
[373503846,1753024248833,-460.0,0.00017534,2]
[373503847,1753024248842,-460.0,0.00017534,2]
[373503848,1753024248852,-460.0,0.00017534,2]
[373503849,1753024248861,-460.0,0.00017534,2]
[373503850,1753024248871,-460.0,0.00017534,2]
[373503851,1753024248880,-460.0,0.00017534,2]
[373503852,1753024248890,-460.0,0.00017534,2]
[373503853,1753024248899,-460.0,0.00017534,2]
[373503854,1753024248909,-590.00082965,0.00017534,2]
[373503855,1753024248919,-460.0,0.00017534,2]
[373503856,1753024248928,-1083.37,0.00017534,2]
[373503857,1753024248937,-460.0,0.00017534,2]
[373503858,1753024248945,-1652.76,0.00017534,2]
[373503859,1753024248954,-460.0,0.00017534,2]
[373503860,1753024248963,-610.94,0.00017534,2]
[373503861,1753024248972,-460.0,0.00017534,2]
[373503862,1753024248982,-460.0,0.00017534,2]
[373503863,1753024248991,-460.0,0.00017534,2]
[373503864,1753024249000,-500.74,0.00017534,2]
[373503865,1753024249009,-460.0,0.00017534,2]
[373503866,1753024249018,-575.9,0.00017534,2]
[373503867,1753024249027,-460.0,0.00017534,2]
[373503868,1753024249037,-460.0,0.00017534,2]
[373503869,1753024249046,-887.74,0.00017534,2]
[373503870,1753024249056,-460.0,0.00017534,2]
[373503871,1753024249065,-460.0,0.00017534,2]
[373503872,1753024249074,-460.0,0.00017534,2]
[373503873,1753024249083,-460.0,0.00017534,2]
[373503874,1753024249093,-460.0,0.00017534,2]
[373503875,1753024249102,-1920.16,0.00017534,2]
[373503876,1753024249112,-165.16586491,0.00017534,2]
[373503877,1753024249122,-460.0,0.00017534,2]
[373503878,1753024249131,-727.42,0.00017534,2]
[373503879,1753024249141,-1924.42,0.00017534,2]
[373503880,1753024249150,-237.0,0.00017622,2]
[373503881,1753024249159,-237.0,0.0001764,2]
[373503882,1753024249168,-1000.0,0.00017659,2]
[373503883,1753024249177,-237.0,0.00017686,2]
[373503884,1753024249187,-1720.78,0.00017698,3]
[373503885,1753024249404,-860.4,0.00017698,3]
[373503887,1753024249414,-430.2,0.00017698,3]
[373503888,1753024249423,-151.0,0.000177,2]
[373503889,1753024249433,-151.0,0.000177,2]
[373503891,1753024249443,-151.0,0.000177,2]
[373503892,1753024249452,-1023.28629004,0.00017701,2]
[373503894,1753024249462,-1000.0,0.00017701,2]
[373503896,1753024249471,-500.0,0.00017701,2]
[373503898,1753024249481,-4899.29356198,0.00017728,2]
[373503900,1753024249490,-420.0,0.00017735,2]
[373503901,1753024249500,-237.0,0.00017769,2]
[373503904,1753024249509,-237.0,0.00017773,2]
[373503906,1753024249520,-1000.0,0.00017785,2]
[373503908,1753024249530,-460.0,0.00017808,2]
[373503909,1753024249539,-460.0,0.00017808,2]
[373503912,1753024249549,-460.0,0.00017808,2]
[373503913,1753024249558,-460.0,0.00017808,2]
[373503915,1753024249567,-460.0,0.00017808,2]
[373503917,1753024249578,-460.0,0.00017808,2]
[373503919,1753024249587,-502.79,0.00017808,2]
[373503922,1753024249597,-460.0,0.00017808,2]
[373503923,1753024249606,-1204.91,0.00017808,2]
[373503926,1753024249617,-460.0,0.00017808,2]
[373503928,1753024249627,-491.79,0.00017808,2]
[373503929,1753024249636,-460.0,0.00017808,2]
[373503931,1753024249645,-2144.03,0.00017808,2]
[373503933,1753024249654,-460.0,0.00017808,2]
[373503935,1753024249665,-460.0,0.00017808,2]
[373503937,1753024249675,-460.0,0.00017808,2]
[373503939,1753024249684,-460.0,0.00017808,2]
[373503941,1753024249694,-460.0,0.00017808,2]
[373503943,1753024249703,-460.0,0.00017808,2]
[373503945,1753024249713,-460.0,0.00017808,2]
[373503947,1753024249723,-460.0,0.00017808,2]
[373503949,1753024249732,-460.0,0.00017808,2]
[373503951,1753024249743,-4843.49,0.00017808,2]
[373503953,1753024249752,-278.1133207,0.00017808,2]
[373503955,1753024249762,-460.0,0.00017808,2]
[373503957,1753024249771,-460.0,0.00017808,2]
[373503959,1753024249780,-1237.85,0.00017808,2]
[373503961,1753024249790,-483.48,0.00017808,2]
[373503963,1753024249799,-460.0,0.00017808,2]
[373503965,1753024249809,-3981.81,0.00017808,2]
[373503967,1753024249818,-460.0,0.00017808,2]
[373503969,1753024249828,-460.0,0.00017808,2]
[373503971,1753024249838,-460.0,0.00017808,2]
[373503973,1753024249847,-460.0,0.00017808,2]
[373503975,1753024249857,-432.4,0.00017808,2]
[373503977,1753024249868,-460.0,0.00017808,2]
[373503979,1753024249877,-460.0,0.00017808,2]
[373503981,1753024249887,-460.0,0.00017808,2]
[373503995,1753024250012,-460.0,0.00017808,2]
[373503998,1753024250023,-1155.02,0.00017808,2]
[373504000,1753024250032,-460.0,0.00017808,2]
[373504002,1753024250042,-460.0,0.00017808,2]
[373504004,1753024250051,-460.0,0.00017808,2]
[373504006,1753024250060,-369.57089789,0.00017808,2]
[373504008,1753024250070,-1417.78,0.00017808,2]
[373504010,1753024250079,-460.0,0.00017808,2]
[373504012,1753024250088,-460.0,0.00017808,2]
[373504014,1753024250097,-569.14,0.00017808,2]
[373504016,1753024250107,-1607.28,0.00017808,2]
[373504018,1753024250116,-478.75371496,0.00017808,2]
[373504020,1753024250128,-460.0,0.00017808,2]
[373504022,1753024250138,-468.82013282,0.00017808,2]
[373504024,1753024250148,-460.0,0.00017808,2]
[373504026,1753024250157,-460.0,0.00017808,2]
[373504028,1753024250166,-460.0,0.00017808,2]
[373504030,1753024250175,-460.0,0.00017808,2]
[373504032,1753024250185,-526.57,0.00017808,2]
[373504034,1753024250194,-370.55427041,0.00017808,2]
[373504035,1753024250203,-460.0,0.00017808,2]
[373504038,1753024250212,-460.0,0.00017808,2]
[373504040,1753024250222,-2632.32,0.00017808,2]
[373504042,1753024250232,-460.0,0.00017808,2]
[373504044,1753024250241,-1706.81,0.00017808,2]
[373504046,1753024250251,-460.0,0.00017808,2]
[373504048,1753024250260,-610.02,0.00017808,2]
[373504050,1753024250270,-1837.71,0.00017808,2]
[373504052,1753024250279,-460.0,0.00017808,2]
[373504054,1753024250288,-293.53641071,0.00017808,2]
[373504056,1753024250298,-460.0,0.00017808,2]
[373504058,1753024250307,-348.75965009,0.00017808,2]
[373504060,1753024250316,-460.0,0.00017808,2]
[373504062,1753024250325,-460.0,0.00017808,2]
[373504064,1753024250334,-460.0,0.00017808,2]
[373504066,1753024250343,-460.0,0.00017808,2]
[373504068,1753024250352,-460.0,0.00017808,2]
[373504070,1753024250362,-460.0,0.00017808,2]
[373504072,1753024250373,-505.86,0.00017808,2]
[373504074,1753024250383,-516.74,0.00017808,2]
[373504076,1753024250392,-460.0,0.00017808,2]
[373504078,1753024250401,-800.41,0.00017808,2]
[373504080,1753024250411,-911.32,0.00017808,2]
[373504082,1753024250420,-460.0,0.00017808,2]
[373504084,1753024250430,-660.01,0.00017808,2]
[373504086,1753024250440,-460.0,0.00017808,2]
[373504088,1753024250449,-460.0,0.00017808,2]
[373504090,1753024250458,-460.0,0.00017808,2]
[373504092,1753024250467,-460.0,0.00017808,2]
[373504094,1753024250477,-460.0,0.00017808,2]
[373504096,1753024250486,-460.0,0.00017808,2]
[373504098,1753024250495,-460.0,0.00017808,2]
[373504100,1753024250504,-460.0,0.00017808,2]
[373504102,1753024250513,-1083.37,0.00017808,2]
[373504104,1753024250524,-460.0,0.00017808,2]
[373504106,1753024250533,-1652.76,0.00017808,2]
[373504108,1753024250542,-460.0,0.00017808,2]
[373504110,1753024250551,-610.94,0.00017808,2]
[373504112,1753024250561,-460.0,0.00017808,2]
[373504114,1753024250570,-460.0,0.00017808,2]
[373504116,1753024250579,-500.74,0.00017808,2]
[373504118,1753024250588,-460.0,0.00017808,2]
[373504120,1753024250598,-575.9,0.00017808,2]
[373504122,1753024250608,-460.0,0.00017808,2]
[373504124,1753024250619,-506.98997114,0.00017808,2]
[373504126,1753024250629,-887.74,0.00017808,2]
[373504128,1753024250639,-460.0,0.00017808,2]
[373504130,1753024250648,-460.0,0.00017808,2]
[373504132,1753024250658,-460.0,0.00017808,2]
[373504134,1753024250671,-460.0,0.00017808,2]
[373504136,1753024250680,-471.94,0.00017808,2]
[373504138,1753024250691,-1920.16,0.00017808,2]
[373504140,1753024250702,-460.0,0.00017808,2]
[373504142,1753024250711,-727.42,0.00017808,2]
[373504144,1753024250720,-1924.42,0.00017808,2]
[373504146,1753024250730,-1680.0,0.00017824,2]
[373504148,1753024250739,-237.0,0.00017827,2]
[373504150,1753024250750,-237.0,0.00017836,2]
[373504152,1753024250760,-160.0,0.00017858,2]
[373504154,1753024250770,-1500.0,0.00017868,2]
[373504156,1753024250779,-1500.0,0.00017868,2]
[373504158,1753024250789,-886.07177506,0.00017868,2]
[373504160,1753024250799,-1500.0,0.00017868,2]
[373504162,1753024250808,-529.61696009,0.00017868,2]
[373504164,1753024250818,-1500.0,0.00017868,2]
[373504166,1753024250828,-260.17062627,0.00017887,2]
[373504168,1753024250838,-151.0,0.000179,2]
[373504170,1753024250847,-237.0,0.00017936,2]
[373504172,1753024250856,-4899.29356198,0.00018003,2]
[373504174,1753024250866,-460.0,0.00018082,2]
[373504176,1753024250876,-460.0,0.00018082,2]
[373504178,1753024250886,-460.0,0.00018082,2]
[373504180,1753024250895,-460.0,0.00018082,2]
[373504182,1753024250905,-460.0,0.00018082,2]
[373504184,1753024250915,-502.79,0.00018082,2]
[373504186,1753024250924,-460.0,0.00018082,2]
[373504188,1753024250934,-1204.91,0.00018082,2]
[373504191,1753024250943,-460.0,0.00018082,2]
[373504192,1753024250953,-491.79,0.00018082,2]
[373504194,1753024250962,-460.0,0.00018082,2]
[373504196,1753024250971,-2144.03,0.00018082,2]
[373504199,1753024250981,-460.0,0.00018082,2]
[373504201,1753024250990,-460.0,0.00018082,2]
[373504203,1753024250999,-460.0,0.00018082,2]
[373504205,1753024251008,-460.0,0.00018082,2]
[373504206,1753024251018,-460.0,0.00018082,2]
[373504208,1753024251027,-460.0,0.00018082,2]
[373504211,1753024251036,-460.0,0.00018082,2]
[373504212,1753024251046,-4843.49,0.00018082,2]
[373504215,1753024251055,-460.0,0.00018082,2]
[373504216,1753024251065,-460.0,0.00018082,2]
[373504219,1753024251074,-1237.85,0.00018082,2]
[373504220,1753024251084,-483.48,0.00018082,2]
[373504222,1753024251094,-460.0,0.00018082,2]
[373504224,1753024251104,-3981.81,0.00018082,2]
[373504226,1753024251113,-460.0,0.00018082,2]
[373504228,1753024251122,-460.0,0.00018082,2]
[373504230,1753024251132,-460.0,0.00018082,2]
[373504232,1753024251141,-460.0,0.00018082,2]
[373504234,1753024251150,-460.0,0.00018082,2]
[373504236,1753024251159,-460.0,0.00018082,2]
[373504238,1753024251169,-460.0,0.00018082,2]
[373504240,1753024251177,-1155.02,0.00018082,2]
[373504242,1753024251186,-460.0,0.00018082,2]
[373504244,1753024251195,-236.8,0.00018082,2]
[373504246,1753024251204,-460.0,0.00018082,2]
[373504248,1753024251213,-1417.78,0.00018082,2]
[373504250,1753024251222,-460.0,0.00018082,2]
[373504252,1753024251231,-460.0,0.00018082,2]
[373504254,1753024251240,-569.14,0.00018082,2]
[373504256,1753024251249,-1607.28,0.00018082,2]
[373504258,1753024251258,-460.0,0.00018082,2]
[373504260,1753024251267,-460.0,0.00018082,2]
[373504262,1753024251276,-460.0,0.00018082,2]
[373504264,1753024251285,-460.0,0.00018082,2]
[373504266,1753024251294,-526.57,0.00018082,2]
[373504268,1753024251303,-460.0,0.00018082,2]
[373504270,1753024251313,-460.0,0.00018082,2]
[373504272,1753024251322,-2632.32,0.00018082,2]
[373504274,1753024251331,-460.0,0.00018082,2]
[373504276,1753024251340,-1706.81,0.00018082,2]
[373504278,1753024251349,-460.0,0.00018082,2]
[373504280,1753024251358,-610.02,0.00018082,2]
[373504282,1753024251367,-1837.71,0.00018082,2]
[373504284,1753024251376,-460.0,0.00018082,2]
[373504286,1753024251385,-460.0,0.00018082,2]
[373504288,1753024251394,-460.0,0.00018082,2]
[373504290,1753024251403,-460.0,0.00018082,2]
[373504292,1753024251412,-460.0,0.00018082,2]
[373504294,1753024251421,-460.0,0.00018082,2]
[373504296,1753024251430,-460.0,0.00018082,2]
[373504298,1753024251439,-460.0,0.00018082,2]
[373504300,1753024251448,-505.86,0.00018082,2]
[373504302,1753024251458,-516.74,0.00018082,2]
[373504304,1753024251467,-800.41,0.00018082,2]
[373504306,1753024251476,-460.0,0.00018082,2]
[373504308,1753024251485,-911.32,0.00018082,2]
[373504310,1753024251494,-460.0,0.00018082,2]
[373504312,1753024251503,-660.01,0.00018082,2]
[373504314,1753024251513,-460.0,0.00018082,2]
[373504316,1753024251522,-460.0,0.00018082,2]